bitfinex/quotes_ETHUSD_20250802
["timestamp","ask_amount","ask_price","bid_price","bid_amount"]
[1754163491242,0.1464,3418.4,3418.3,3.0]
[1754163491518,4.667,3418.6,3418.3,3.0]
[1754163491820,1.4177,3419.4,3418.4,0.0061]
[1754163492019,0.1464,3419.0,3418.9,3.0]
[1754163492222,1.8463,3419.0,3417.6,14.37276635]
[1754163492390,0.1464,3418.0,3417.4,0.1464]
[1754163492793,4.667,3418.2,3417.3,3.0061]
[1754163493008,0.1464,3418.1,3417.6,0.1464]
[1754163493715,4.667,3418.3,3417.9,3.1464]
[1754163493919,0.1464,3418.4,3417.9,3.1464]
[1754163494124,4.8124,3418.5,3418.1,0.1464]
[1754163494332,1.8463,3418.4,3418.1,0.1464]
[1754163494499,1.8463,3418.4,3418.0,0.1464]
[1754163494889,4.8124,3418.5,3418.0,0.1464]
[1754163495388,1.8463,3418.4,3418.0,0.1464]
[1754163495825,0.1464,3418.2,3417.9,1.7757]
[1754163496126,1.5641,3418.2,3417.9,1.7757]
[1754163496323,1.4177,3418.1,3417.9,1.7757]
[1754163496506,0.575,3418.2,3417.3,3.0]
[1754163496507,1.8463,3418.0,3417.3,3.0]
[1754163496735,1.8463,3418.0,3417.6,0.1464]
[1754163496939,0.1464,3418.2,3417.6,0.1464]
[1754163497107,0.1464,3418.2,3417.9,3.0]
[1754163497292,1.4177,3418.4,3417.9,3.0]
[1754163497586,1.5641,3418.4,3417.9,3.1464]
[1754163498023,4.666,3418.5,3417.9,3.1464]
[1754163498231,0.1464,3418.1,3417.9,3.0]
[1754163499506,0.1464,3418.1,3417.8,14.37276635]
[1754163499708,1.8463,3418.0,3417.4,4.666]
[1754163499892,0.1464,3418.1,3417.8,14.37276635]
[1754163500622,1.4177,3418.4,3417.8,14.37276635]
[1754163500934,0.1464,3418.4,3417.9,0.1464]
[1754163501608,1.8463,3418.3,3417.9,0.1464]
[1754163501820,0.4286,3418.3,3417.9,0.1464]
[1754163502017,1.4452,3418.2,3417.9,0.1464]
[1754163502197,0.4286,3418.3,3417.9,0.1464]
[1754163502398,1.8738,3418.3,3417.9,0.1464]
[1754163502611,0.1464,3418.4,3417.9,0.1464]
[1754163503011,4.665,3418.8,3418.0,0.0061]
[1754163503216,4.665,3418.8,3418.4,14.37276635]
[1754163504934,1.5916,3418.9,3418.4,14.37276635]
[1754163504935,0.1464,3418.9,3418.4,14.37276635]
[1754163505137,4.8114,3418.9,3418.4,14.37276635]
[1754163505342,4.8114,3418.9,3418.5,14.37276635]
[1754163506737,1.4452,3419.3,3418.5,14.37276635]
[1754163506903,4.664,3419.2,3419.1,14.37276635]
[1754163507100,0.1464,3419.3,3419.1,14.37276635]
[1754163507325,1.5916,3419.3,3419.1,14.37276635]
[1754163507913,0.1464,3419.3,3419.1,14.37276635]
[1754163508504,1.5916,3419.3,3419.1,14.37276635]
[1754163508738,6.2556,3419.3,3419.1,14.37276635]
[1754163508904,6.2566,3419.3,3419.1,14.37276635]
[1754163509105,4.8114,3419.3,3419.1,11.44806635]
[1754163509328,0.1474,3419.3,3419.1,11.44806635]
[1754163509859,7.581,3420.7,3419.2,0.1464]
[1754163509860,4.663,3419.5,3419.2,0.1464]
[1754163510008,4.663,3419.7,3419.2,3.1464]
[1754163510211,4.663,3419.7,3419.4,0.1464]
[1754163510605,1.4452,3420.3,3419.2,3.0]
[1754163510805,0.1464,3420.1,3419.7,14.37276635]
[1754163511004,0.6049,3420.1,3419.7,14.37276635]
[1754163511255,6.1082,3420.0,3419.7,14.37276635]
[1754163511410,1.4452,3419.9,3419.7,13.27176635]
[1754163512660,4.662,3419.9,3419.7,13.27176635]
[1754163513161,0.1464,3420.1,3419.7,13.27176635]
[1754163513318,1.4452,3420.0,3419.7,13.27176635]
[1754163514030,4.8084,3420.1,3419.7,13.27176635]
[1754163514662,1.9037,3420.0,3419.7,13.27176635]
[1754163515170,1.4452,3420.0,3419.7,13.27176635]
[1754163515561,4.8084,3420.1,3419.7,13.27176635]
[1754163515730,1.9037,3419.9,3419.6,0.1464]
[1754163516563,4.661,3419.8,3419.6,0.1464]
[1754163517847,1.5916,3420.2,3419.6,0.1464]
[1754163517848,1.5916,3420.2,3419.7,14.37276635]
[1754163518159,4.661,3420.1,3419.7,14.37276635]
[1754163518366,0.001,3420.5,3419.7,14.37276635]
[1754163518526,0.001,3420.5,3420.3,14.37276635]
[1754163518527,4.66,3420.4,3420.3,14.37276635]
[1754163518955,4.66,3420.4,3420.3,14.51916635]
[1754163519158,0.001,3420.5,3420.3,14.51916635]
[1754163519659,1.4462,3420.5,3420.3,14.51916635]
[1754163520183,0.001,3420.5,3420.3,14.51916635]
[1754163523368,1.4462,3420.5,3420.3,14.51916635]
[1754163523577,0.001,3420.5,3420.3,14.51916635]
[1754163527691,1.4462,3420.5,3420.3,14.51916635]
[1754163527892,1.9037,3420.4,3420.3,0.1464]
[1754163528078,1.9037,3420.4,3420.0,0.1464]
[1754163528392,6.5607,3420.3,3420.0,0.1464]
[1754163528551,4.657,3420.3,3420.0,0.1464]
[1754163528756,1.9037,3420.2,3420.0,0.1464]
[1754163528982,1.9037,3420.2,3419.2,0.75016842]
[1754163529293,1.9037,3420.2,3419.8,0.1464]
[1754163529594,1.9037,3420.1,3419.8,0.1464]
[1754163529794,4.656,3420.0,3419.8,3.0]
[1754163529996,4.656,3420.1,3420.0,0.1464]
[1754163530181,4.656,3420.1,3419.8,3.0]
[1754163530386,1.4452,3420.3,3419.9,0.1464]
[1754163530579,0.1474,3420.5,3419.9,0.1464]
[1754163530580,4.656,3420.1,3419.9,0.1464]
[1754163530901,1.4452,3420.0,3419.9,0.1464]
[1754163531095,4.656,3420.1,3419.9,0.1464]
[1754163533573,1.901,3420.0,3419.9,0.1464]
[1754163533792,1.901,3420.0,3419.6,0.1464]
[1754163533960,1.901,3419.9,3419.6,0.1464]
[1754163534156,1.901,3419.9,3419.3,0.002]
[1754163534372,1.93755184,3419.8,3419.3,0.002]
[1754163534699,4.655,3419.7,3419.3,0.002]
[1754163534857,4.655,3419.6,3419.5,0.1464]
[1754163535273,6.556,3419.6,3419.5,0.1464]
[1754163535474,6.556,3419.6,3419.3,0.002]
[1754163535781,1.901,3419.5,3419.3,0.002]
[1754163536294,4.8014,3419.6,3419.3,0.002]
[1754163536295,1.901,3419.4,3419.3,0.002]
[1754163536815,2.0474,3419.4,3419.3,0.002]
[1754163537108,2.08395612,3419.4,3419.3,0.002]
[1754163537300,2.0474,3419.4,3419.3,0.002]
[1754163537694,2.08395612,3419.4,3419.3,0.002]
[1754163539101,2.08395612,3419.4,3418.2,0.1464]
[1754163539414,0.1464,3418.7,3418.2,0.1464]
[1754163539722,0.1464,3418.4,3417.9,0.002]
[1754163539895,0.1464,3418.2,3417.9,0.002]
[1754163540285,1.901,3418.1,3417.9,0.002]
[1754163540802,2.0474,3418.0,3417.9,0.002]
[1754163541924,1.901,3418.0,3417.5,0.002]
[1754163542106,1.901,3418.0,3415.8,14.37276635]
[1754163542107,6.59157216,3417.9,3415.8,14.37276635]
[1754163542420,0.55,3417.7,3415.8,14.37276635]
[1754163542602,1.47587537,3417.6,3415.9,3.0]
[1754163542805,0.4617,3417.5,3415.9,3.0]
[1754163543006,1.4393,3417.4,3416.5,3.0]
[1754163543204,0.4617,3417.3,3416.4,14.37276635]
[1754163543417,1.4393,3417.2,3416.2,14.37276635]
[1754163543621,0.4617,3417.1,3416.2,14.37276635]
[1754163543829,1.47588179,3417.0,3416.2,14.37276635]
[1754163543988,4.655,3416.9,3416.2,14.37276635]
[1754163544324,1.47588393,3416.8,3415.9,0.22023662]
[1754163544527,0.4617,3416.7,3415.9,0.22023662]
[1754163544728,1.4393,3416.6,3415.6,14.37276635]
[1754163545033,0.4617,3416.5,3415.6,11.44556635]
[1754163545232,6.0943,3416.4,3415.6,12.17469239]
[1754163545381,6.0943,3416.4,3415.6,11.44556635]
[1754163545881,1.4393,3416.3,3415.7,3.0]
[1754163546081,0.4617,3416.2,3415.7,3.21702256]
[1754163546287,0.4617,3416.2,3415.2,3.0]
[1754163546486,1.4393,3416.1,3415.1,4.655]
[1754163546686,1.4393,3416.1,3414.9,14.37276635]
[1754163547085,0.4617,3416.0,3414.6,14.37476635]
[1754163547323,4.655,3415.9,3415.2,14.37276635]
[1754163547523,1.4393,3415.8,3415.2,14.37276635]
[1754163547821,0.03659571,3415.7,3414.6,14.59172294]
[1754163548024,0.4617,3415.7,3414.6,14.59172294]
[1754163548230,1.4393,3415.6,3414.6,0.21895659]
[1754163548386,4.656,3415.5,3414.9,14.37276635]
[1754163548586,1.4393,3415.6,3414.9,14.37276635]
[1754163548821,5.1177,3415.5,3414.9,14.37276635]
[1754163549231,1.4393,3415.4,3414.6,0.21895659]
[1754163549430,0.4983,3415.3,3414.6,0.21895659]
[1754163549634,0.4983,3415.3,3414.5,6.13442346]
[1754163549635,1.47590107,3415.2,3414.5,3.20782346]
[1754163549838,1.47590107,3415.2,3413.9,0.002]
[1754163550133,5.1167,3415.1,3414.0,14.37276635]
[1754163550334,0.1,3417.2,3413.9,0.21853877]
[1754163550335,6.556,3415.0,3413.9,0.21853877]
[1754163550496,6.556,3414.9,3413.9,0.002]
[1754163551003,4.657,3414.8,3413.9,0.002]
[1754163551204,6.0963,3414.8,3413.9,0.22439431]
[1754163551458,1.4393,3414.7,3413.9,0.002]
[1754163551733,0.1464,3414.5,3414.0,0.1464]
[1754163552135,0.1464,3414.5,3413.6,14.99337588]
[1754163552136,0.1464,3414.3,3413.8,0.1464]
[1754163552709,1.4393,3414.2,3413.8,0.1464]
[1754163552900,0.1464,3414.3,3413.8,0.1464]
[1754163553098,1.901,3414.2,3413.6,0.21469368]
[1754163553325,1.93761287,3414.1,3412.6,11.44526635]
[1754163553520,0.1464,3413.7,3413.1,0.1464]
[1754163553698,4.656,3413.6,3413.1,0.1464]
[1754163553911,1.4393,3413.5,3413.1,0.1464]
[1754163554229,4.656,3413.4,3413.2,14.37276635]
[1754163554425,4.656,3413.6,3413.3,0.1464]
[1754163554801,4.656,3413.9,3413.3,3.0]
[1754163555010,4.656,3413.9,3413.6,0.1464]
[1754163555241,1.4393,3413.8,3413.2,3.2162118]
[1754163555417,4.8024,3413.9,3413.4,3.07595844]
[1754163555602,1.901,3413.8,3413.4,0.1464]
[1754163555932,0.03661716,3413.7,3413.4,0.1464]
[1754163556132,4.8024,3413.9,3413.4,0.1464]
[1754163556338,1.901,3413.6,3413.2,0.22336819]
[1754163556544,0.1464,3413.5,3413.2,0.22336819]
[1754163557041,1.4393,3413.4,3413.2,0.22336819]
[1754163557648,0.6081,3413.5,3413.2,0.22336819]
[1754163557649,1.901,3413.3,3413.2,0.22336819]
[1754163557947,1.901,3413.3,3412.2,4.93700867]
[1754163557948,6.74202145,3413.3,3411.7,2.93306714]
[1754163558109,1.901,3413.2,3411.7,0.002]
[1754163558307,0.1464,3412.6,3412.1,0.1464]
[1754163558510,0.1464,3412.6,3411.7,0.22446592]
[1754163558511,6.559,3412.5,3411.7,0.002]
[1754163558812,0.1464,3412.4,3411.9,0.1464]
[1754163559029,1.901,3412.3,3411.7,0.002]
[1754163559226,0.1464,3412.2,3411.7,0.22710672]
[1754163559425,1.901,3412.1,3411.7,0.002]
[1754163559624,4.657,3412.0,3411.7,0.002]
[1754163560329,1.4393,3411.9,3411.7,0.002]
[1754163560528,0.1464,3412.1,3411.7,0.002]
[1754163560954,1.4393,3411.9,3411.6,0.1464]
[1754163561157,4.658,3412.5,3411.5,3.0]
[1754163561158,0.4617,3412.4,3411.5,17.37276635]
[1754163561355,1.5857,3412.3,3411.5,16.87916635]
[1754163561590,1.4393,3412.3,3411.6,0.1395]
[1754163561768,1.4393,3412.3,3411.5,13.77106635]
[1754163562078,0.464,3412.2,3411.4,5.97886998]
[1754163562386,0.1464,3412.0,3411.4,5.97886998]
[1754163562584,6.5931,3411.9,3411.1,0.1464]
[1754163562755,0.1464,3411.4,3410.9,0.1464]
[1754163562956,1.9351,3411.3,3410.6,0.1464]
[1754163563254,0.1464,3411.2,3410.7,0.1464]
[1754163563454,1.4711,3411.1,3410.7,0.1464]
[1754163563691,0.6104,3411.2,3410.7,0.1464]
[1754163563692,0.1464,3411.2,3410.7,0.1464]
[1754163563978,0.1464,3411.3,3410.7,14.37276635]
[1754163564178,0.1464,3411.5,3411.0,0.1464]
[1754163564384,0.1464,3411.7,3411.2,0.1464]
[1754163564580,1.9351,3411.4,3410.8,0.1464]
[1754163564889,0.1464,3411.3,3410.8,0.1464]
[1754163565342,1.9351,3411.2,3410.8,0.1464]
[1754163565545,1.4711,3411.1,3410.8,0.1464]
[1754163565741,1.9351,3411.1,3410.8,0.1464]
[1754163565982,1.4711,3411.0,3410.1,3.0]
[1754163566167,1.4711,3411.6,3410.6,14.37276635]
[1754163566369,0.1464,3411.5,3410.9,0.1464]
[1754163566545,1.4711,3411.4,3410.9,0.1464]
[1754163566747,0.1464,3411.5,3410.9,0.1464]
[1754163566949,0.1464,3411.8,3411.3,0.1464]
[1754163567144,1.4711,3412.0,3411.3,0.1464]
[1754163567450,1.6175,3412.0,3411.5,0.1464]
[1754163567665,1.4711,3411.9,3411.5,0.1464]
[1754163568075,1.4711,3411.8,3411.5,0.1464]
[1754163568468,0.464,3411.9,3411.5,0.1464]
[1754163568975,0.1464,3412.0,3411.5,0.1464]
[1754163569283,1.4711,3411.9,3411.5,0.1464]
[1754163569484,1.4711,3411.8,3411.5,0.1464]
[1754163570190,4.662,3412.2,3411.1,0.1464]
[1754163570191,0.1464,3411.6,3411.1,0.1464]
[1754163570545,3.0,3413.3,3410.6,14.37276635]
[1754163570546,1.4711,3411.9,3411.0,2.93168029]
[1754163570752,1.4711,3411.9,3411.5,0.1464]
[1754163571069,0.464,3412.1,3411.5,0.1464]
[1754163571270,0.6104,3412.1,3411.5,0.1464]
[1754163572089,0.1464,3412.1,3411.5,0.1464]
[1754163572288,1.4711,3412.7,3412.0,0.1464]
[1754163572491,1.9351,3412.6,3411.2,14.92276635]
[1754163572679,1.9351,3412.6,3411.6,0.1464]
[1754163572680,0.1464,3412.1,3411.6,0.1464]
[1754163572853,0.1464,3412.1,3411.2,14.92276635]
[1754163572854,1.9351,3412.0,3411.2,0.22302254]
[1754163573053,1.9351,3412.0,3411.5,0.1464]
[1754163573292,0.03663325,3412.2,3410.8,17.37276635]
[1754163573293,0.1464,3411.6,3411.2,0.1464]
[1754163573493,1.9351,3411.5,3411.2,0.1464]
[1754163573794,1.9351,3411.4,3411.2,0.1464]
[1754163573992,0.1464,3411.6,3411.2,0.1464]
[1754163573993,1.9351,3411.3,3411.2,0.1464]
[1754163574182,0.1464,3411.6,3411.2,0.1464]
[1754163574355,4.664,3412.2,3411.5,14.37276635]
[1754163574559,1.4711,3412.1,3411.5,11.44106635]
[1754163574752,1.9351,3412.1,3411.7,0.1464]
[1754163575066,1.9351,3412.0,3411.7,0.1464]
[1754163575266,0.1464,3412.0,3411.5,0.1464]
[1754163575454,0.1464,3412.4,3411.9,0.1464]
[1754163575659,4.664,3412.3,3411.9,0.1464]
[1754163575887,1.4711,3412.9,3412.2,0.1464]
[1754163576082,6.2815,3412.9,3412.2,0.1464]
[1754163576399,6.1351,3412.9,3412.4,0.1464]
[1754163576642,0.1464,3413.0,3412.4,0.1464]
[1754163576915,1.9351,3412.8,3412.5,0.1464]
[1754163577318,0.464,3412.8,3412.5,0.1464]
[1754163577523,0.1464,3413.0,3412.5,0.1464]
[1754163577524,1.9351,3412.7,3412.5,0.1464]
[1754163577697,1.9351,3412.6,3411.3,3.55]
[1754163577902,0.1464,3412.4,3411.9,0.1464]
[1754163578090,1.9351,3412.3,3411.9,0.1464]
[1754163578290,1.9351,3412.2,3411.9,0.1464]
[1754163578518,1.9351,3412.1,3411.9,0.1464]
[1754163578827,1.4711,3412.0,3411.9,0.1464]
[1754163579125,0.1464,3412.4,3411.3,3.1452]
[1754163579304,0.45857431,3416.2,3411.9,0.1464]
[1754163579305,1.4711,3412.5,3411.9,0.1464]
[1754163579506,1.6175,3412.5,3412.1,0.1464]
[1754163579716,1.9351,3412.4,3412.1,0.1464]
[1754163580124,0.1464,3412.5,3412.1,0.1464]
[1754163580346,1.9351,3412.3,3412.1,0.1464]
[1754163580817,1.4711,3412.3,3412.1,0.1464]
[1754163581534,1.4711,3412.2,3412.1,0.1464]
[1754163581705,1.9351,3412.2,3411.3,0.55]
[1754163581907,0.1464,3412.0,3411.5,0.1464]
[1754163582302,1.9351,3411.9,3411.5,0.1464]
[1754163582496,1.9351,3411.8,3411.5,0.1464]
[1754163582733,1.9351,3411.7,3411.5,0.1464]
[1754163582928,0.1464,3412.0,3410.9,3.22084273]
[1754163582929,1.9351,3411.6,3410.9,0.22084273]
[1754163583091,2.0815,3411.6,3411.2,0.1464]
[1754163583297,5.125,3412.0,3411.4,0.1464]
[1754163583598,0.1464,3412.3,3411.5,3.0]
[1754163583798,2.0815,3412.4,3411.9,0.1464]
[1754163584094,1.9351,3412.3,3410.9,3.15022248]
[1754163584294,4.661,3412.2,3411.2,3.0]
[1754163584499,1.4711,3412.1,3411.2,14.37276635]
[1754163584804,0.464,3412.0,3411.2,14.37276635]
[1754163585193,1.4711,3411.9,3411.2,14.37276635]
[1754163586540,1.4711,3411.9,3411.3,3.0]
[1754163586734,1.4711,3411.9,3410.9,0.55]
[1754163586930,1.4711,3411.9,3410.9,0.77502927]
[1754163587392,1.4711,3411.9,3411.2,3.0]
[1754163587599,1.4711,3411.9,3411.1,3.0]
[1754163587815,1.4711,3411.9,3411.2,14.37276635]
[1754163588021,4.661,3412.1,3411.3,3.0]
[1754163588222,6.1321,3412.3,3411.2,14.41826635]
[1754163589149,1.4711,3412.3,3411.3,0.55]
[1754163589507,1.4711,3412.8,3411.8,14.37276635]
[1754163589712,6.1321,3412.8,3411.8,14.37276635]
[1754163590407,1.4711,3412.7,3411.8,14.37276635]
[1754163590608,1.9351,3412.7,3411.8,14.37276635]
[1754163590812,0.464,3412.6,3411.5,0.55]
[1754163591119,1.4711,3412.5,3411.5,0.55]
[1754163591748,1.4711,3412.5,3411.3,5.98500403]
[1754163592451,1.4711,3412.5,3411.4,0.880748]
[1754163593051,0.4604,3412.4,3411.4,14.37276635]
[1754163593263,0.4604,3412.4,3411.5,3.0]
[1754163593555,1.4711,3412.5,3411.5,3.0]
[1754163593848,1.5456,3412.7,3412.0,14.37276635]
[1754163594075,2.006,3412.7,3412.3,0.1464]
[1754163594351,1.5456,3412.7,3412.3,0.1464]
[1754163594657,2.04262896,3412.6,3411.3,0.55]
[1754163594815,0.4604,3412.6,3411.4,3.0]
[1754163595157,1.58223003,3412.5,3411.2,0.880777]
[1754163595318,0.4604,3412.4,3410.9,0.22502927]
[1754163595513,1.5456,3412.3,3410.8,19.03576635]
[1754163595716,5.1214,3412.2,3410.9,3.0]
[1754163595939,2.006,3412.1,3410.9,3.0]
[1754163596135,4.661,3412.2,3410.9,3.0]
[1754163596353,2.006,3412.0,3410.9,3.0]
[1754163596864,2.006,3411.9,3410.6,2.93196557]
[1754163597156,2.006,3411.8,3410.7,3.0]
[1754163597333,4.661,3412.2,3410.7,3.0]
[1754163597515,2.006,3411.7,3410.5,17.30687625]
[1754163597719,2.006,3411.7,3410.6,3.0]
[1754163598333,2.006,3411.7,3410.6,5.93203541]
[1754163598859,2.006,3411.7,3410.7,2.93194945]
[1754163599534,1.5456,3411.7,3410.6,3.0]
[1754163599726,5.1214,3412.1,3411.2,2.93144369]
[1754163599926,0.4604,3412.1,3411.2,2.93144369]
[1754163600338,0.4614,3412.8,3411.8,17.3036888]
[1754163600543,0.4614,3412.8,3411.8,19.03376635]
[1754163600738,1.5456,3412.7,3411.7,3.0]
[1754163600958,1.5456,3412.7,3411.8,4.661]
[1754163601133,0.001,3411.9,3411.8,7.59200416]
[1754163601336,1.5456,3412.7,3411.8,7.59200416]
[1754163601750,0.001,3412.8,3412.0,14.37276635]
[1754163601950,0.001,3413.3,3412.7,2.93023119]
[1754163602125,0.001,3413.3,3412.6,14.37276635]
[1754163602327,0.4604,3413.2,3412.3,4.66]
[1754163602532,0.4604,3413.2,3412.5,2.93038675]
[1754163602752,0.4604,3413.2,3412.4,2.93046328]
[1754163602963,0.4604,3413.2,3412.3,4.66]
[1754163603273,0.001,3413.3,3412.8,2.93013897]
[1754163603570,0.001,3413.3,3412.7,2.93023119]
[1754163603767,0.001,3413.3,3412.7,7.59023119]
[1754163604071,0.001,3413.3,3412.6,14.37276635]
[1754163604368,0.001,3413.3,3412.7,7.59019012]
[1754163604531,0.001,3413.3,3412.7,4.66]
[1754163604878,0.001,3413.3,3413.1,0.1464]
[1754163605444,0.001,3413.3,3413.2,0.1464]
[1754163606269,0.001,3413.3,3412.4,3.0]
[1754163606474,0.001,3413.3,3413.1,0.1464]
[1754163606690,0.001,3413.3,3412.9,17.30282084]
[1754163606893,0.001,3413.3,3413.2,0.1464]
[1754163608358,1.5466,3413.3,3413.2,0.1464]
[1754163608756,0.001,3413.3,3413.2,0.1464]
[1754163608971,2.007,3413.3,3413.2,0.1464]
[1754163609176,2.007,3413.3,3412.3,0.22136215]
[1754163609374,2.006,3413.2,3412.2,3.0]
[1754163609575,2.006,3413.1,3412.0,2.93079447]
[1754163609919,2.006,3413.0,3412.0,5.93079447]
[1754163610095,1.5456,3412.9,3412.0,5.93079447]
[1754163610424,2.006,3412.9,3412.0,0.21839872]
[1754163610571,2.006,3412.9,3412.0,14.37276635]
[1754163610771,2.006,3412.9,3412.0,17.30356432]
[1754163611005,2.006,3412.9,3412.0,14.5902626]
[1754163611206,0.001,3413.3,3412.5,2.93040151]
[1754163611367,0.001,3413.3,3412.4,2.93046883]
[1754163611572,1.5456,3413.2,3412.3,2.93049119]
[1754163611784,2.006,3413.2,3412.3,2.93056389]
[1754163611985,2.006,3413.2,3412.4,2.9304888]
[1754163612218,2.006,3413.2,3412.5,2.93040293]
[1754163612410,0.001,3413.3,3412.6,14.37276635]
[1754163613025,1.5456,3413.2,3412.6,14.37276635]
[1754163613586,0.4604,3413.1,3412.6,14.37276635]
[1754163613807,1.5466,3413.3,3412.6,14.37276635]
[1754163614710,1.5466,3413.3,3412.4,4.659]
[1754163614711,0.4604,3413.2,3412.4,4.659]
[1754163614912,1.5456,3413.1,3412.4,4.659]
[1754163615335,0.4604,3413.0,3412.0,14.5902626]
[1754163615540,0.4604,3413.0,3412.1,4.659]
[1754163616039,1.5456,3412.9,3412.2,2.93064585]
[1754163616236,1.5456,3412.9,3412.3,2.93055875]
[1754163616436,1.5456,3412.9,3412.2,2.93063574]
[1754163617243,0.4604,3413.0,3412.1,4.659]
[1754163617423,0.4614,3413.3,3412.4,2.93042986]
[1754163618030,1.5456,3413.2,3412.4,2.93042986]
[1754163618231,1.5456,3413.2,3412.2,0.1132]
[1754163618431,0.001,3413.3,3412.6,14.37276635]
[1754163618609,0.001,3413.3,3412.7,2.93018051]
[1754163618946,0.4604,3413.2,3412.6,2.93031511]
[1754163619112,0.4604,3413.2,3412.9,0.1464]
[1754163619430,1.5456,3413.1,3412.9,0.1464]
[1754163620139,0.001,3413.3,3412.9,0.1464]
[1754163620298,2.006,3413.0,3412.9,0.1464]
[1754163621544,2.006,3413.0,3412.1,4.659]
[1754163621773,2.006,3412.9,3412.4,0.1464]
[1754163621977,1.006,3412.9,3412.4,0.1464]
[1754163622190,0.4409,3412.8,3412.4,0.1464]
[1754163622349,0.4409,3412.7,3412.4,0.1464]
[1754163622549,0.4409,3412.6,3412.4,0.1464]
[1754163623252,0.001,3413.3,3412.4,0.1464]
[1754163623469,0.4409,3413.2,3412.5,3.0]
[1754163623681,0.4409,3413.2,3412.9,0.1464]
[1754163624146,1.9612,3413.2,3412.9,0.1464]
[1754163624542,0.001,3413.3,3412.9,0.1464]
[1754163624746,1.9612,3413.1,3412.9,0.1464]
[1754163625154,0.4409,3413.0,3412.9,0.1464]
[1754163625359,0.001,3413.3,3412.9,0.1464]
[1754163625775,1.9612,3413.2,3412.9,0.1464]
[1754163626101,1.9612,3413.1,3412.5,2.93039582]
[1754163626264,1.9612,3413.1,3412.5,2.93038441]
[1754163626461,1.9612,3413.1,3413.0,0.1464]
[1754163626664,0.4409,3413.1,3413.0,0.1464]
[1754163626906,1.9612,3413.1,3413.0,0.1464]
[1754163627194,1.9612,3413.1,3412.3,4.659]
[1754163627502,1.9612,3413.1,3412.9,0.1464]
[1754163627687,0.001,3413.3,3412.9,0.1464]
[1754163627888,1.9612,3413.0,3412.9,0.1464]
[1754163629509,0.001,3413.3,3412.9,0.1464]
[1754163629801,1.9612,3413.2,3412.9,0.1464]
[1754163630161,0.001,3413.3,3412.9,0.1464]
[1754163630405,1.9612,3413.1,3412.9,0.1464]
[1754163630562,0.001,3413.3,3412.9,0.1464]
[1754163630764,1.9612,3413.0,3412.9,0.1464]
[1754163630998,1.9612,3413.0,3412.3,3.0]
[1754163631204,1.99782574,3412.9,3411.8,4.658]
[1754163631403,0.1464,3412.7,3412.2,0.1464]
[1754163631705,1.9612,3412.6,3412.2,0.1464]
[1754163631997,1.9612,3412.5,3412.2,0.1464]
[1754163632297,1.9612,3412.4,3412.2,0.1464]
[1754163632599,1.9612,3412.3,3412.2,0.1464]
[1754163634701,0.1464,3412.7,3412.3,3.0]
[1754163635217,0.1464,3412.9,3412.4,0.1464]
[1754163635380,2.1086,3413.3,3412.8,0.1464]
[1754163635698,1.9612,3413.2,3412.8,0.1464]
[1754163636201,1.9612,3413.1,3412.8,0.1464]
[1754163636405,0.1474,3413.3,3412.8,0.1464]
[1754163636406,1.9612,3413.0,3412.8,0.1464]
[1754163637138,0.4409,3413.0,3412.8,0.1464]
[1754163637914,0.001,3413.3,3412.8,0.1464]
[1754163638208,0.001,3413.3,3412.9,3.0]
[1754163638395,0.001,3413.3,3413.1,0.1464]
[1754163639298,0.001,3413.3,3413.2,0.1464]
[1754163643297,0.001,3413.3,3413.2,6.80098211]
[1754163643733,0.001,3413.7,3413.6,2.92945863]
[1754163644036,0.001,3413.7,3413.6,20.44862498]
[1754163644239,0.5873,3414.9,3413.7,3.0]
[1754163644449,0.4409,3414.9,3414.3,5.92878693]
[1754163644606,1.5203,3415.1,3414.5,3.0]
[1754163644807,1.5203,3415.1,3414.2,19.02976635]
[1754163644808,1.5203,3415.1,3414.7,0.1464]
[1754163645007,0.1464,3415.3,3414.7,0.1464]
[1754163645008,1.9612,3415.0,3414.7,0.1464]
[1754163645329,1.9612,3414.9,3414.7,0.1464]
[1754163645537,1.9612,3414.9,3414.7,0.36221957]
[1754163645743,1.5203,3415.2,3414.7,0.36221957]
[1754163645922,7.042,3415.8,3414.8,0.1464]
[1754163645923,0.4409,3415.6,3414.8,0.1464]
[1754163646110,1.9612,3415.6,3415.2,0.1464]
[1754163646315,1.9612,3415.5,3415.2,0.1464]
[1754163646511,0.1464,3415.7,3415.2,0.1464]
[1754163646712,1.9612,3415.6,3415.2,0.1464]
[1754163647239,2.1076,3415.9,3415.5,0.1464]
[1754163647422,0.4409,3415.8,3415.5,0.1464]
[1754163647737,1.9612,3415.8,3415.5,0.1464]
[1754163647937,0.4409,3415.8,3415.5,0.1464]
[1754163648158,1.9612,3415.7,3415.5,0.1464]
[1754163649156,1.5203,3416.0,3415.5,0.1464]
[1754163649365,1.9612,3416.0,3415.5,0.1464]
[1754163649659,1.9612,3415.9,3415.7,0.1464]
[1754163650455,0.5873,3416.1,3415.7,0.1464]
[1754163650628,1.9612,3416.1,3415.7,0.1464]
[1754163651218,1.9612,3416.0,3415.7,0.1464]
[1754163652118,1.9604,3415.9,3415.7,0.1464]
[1754163653122,1.5314,3416.2,3415.7,0.1464]
[1754163653322,0.429,3416.1,3415.9,0.1464]
[1754163653537,1.9604,3416.1,3415.9,0.1464]